Cogmind - Beta 14 *** ADVENTURER MODE // 2024.08.31 @ 15:55:42 Player: LegoMDS Result: Destroyed by D-53 Grenadier with Mini Grenade Launcher Performance ------------- Evolutions (0) 0 Regions Visited (4) 800 Robots Destroyed (24) 120 Value Destroyed (372) 372 Prototype IDs (23) 460 Alien Tech Used (0) 0 Bonus (307) 307 TOTAL SCORE: 2059 Bonus ------- Follower Combat Kills 7 Aligned with FarCom 300 Cogmind --------- Core Integrity 0/250 Matter 226/300 Energy 84/100 System Corruption 3% Temperature Cool (0) Movement Core (250) Ox4 Location -9/Mines Parts ------- > --- POWER (1) -------- (None) > --- PROPULSION (2) --- (None) > --- UTILITY (2) ------ (None) > --- WEAPON (2) ------- Flak Cannon Bore Cannon > --- INVENTORY (5) ---- Phase Shifter AWS/Thermal Mining Laser Mining Claw Peak State ------------ > --- POWER ------------ Light Ion Engine > --- PROPULSION ------- Flight Unit Flight Unit > --- UTILITY ---------- Small Storage Unit > --- WEAPON ----------- Flak Cannon Rocket Launcher > --- INVENTORY -------- Flight Unit AWS/Thermal Assault Rifle Mining Laser Mining Claw [Rating: 11] Favorites ----------- Power Ion Engine Engine Ion Engine Propulsion Aluminum Leg Leg Aluminum Leg Flight Unit Flight Unit Utility Small Storage Unit Storage Small Storage Unit Protection Light Armor Plating Weapon Assault Rifle Ballistic Gun Assault Rifle Ballistic Cannon Flak Cannon Launcher Rocket Launcher Slashing Weapon Mining Claw Build | -11 -10 -10 -10 -9 ------- Run | Yrd Mat Min Exi Min Slots Evolved . | . . . . . Power . | . . . . . Propulsion . | . . . . . Utility . | . . . . . Weapon . | . . . . . Parts Attached 22 | 6 1 5 . 10 Power 2 | 1 . 1 . . Engine 2 | 1 . 1 . . Core . | . . . . . Reactor . | . . . . . Propulsion 5 | 2 . 2 . 1 Treads . | . . . . . Leg 2 | 2 . . . . Wheel . | . . . . . Hover . | . . . . . Flight 3 | . . 2 . 1 Utility 3 | 1 1 1 . . Device . | . . . . . Storage 1 | 1 . . . . Processor . | . . . . . Hackware . | . . . . . Protection 2 | . 1 1 . . Artifact . | . . . . . Weapon 12 | 2 . 1 . 9 Energy Gun . | . . . . . Energy Cannon . | . . . . . Ballistic Gun 3 | 2 . . . 1 Ballistic Cannon 4 | . . 1 . 3 Launcher 3 | . . . . 3 Special Weapon . | . . . . . Impact Weapon . | . . . . . Slashing Weapon 2 | . . . . 2 Piercing Weapon . | . . . . . Special Melee Weapon . | . . . . . Unidentified Prototypes . | . . . . . Corrupted Parts 1 | . . 1 . . System Corruption 3 | . . 3 . . Parts Lost 8 | . . 2 . 6 Power 1 | . . . . 1 Propulsion 3 | . . . . 3 Utility 1 | . . 1 . . Weapon 3 | . . 1 . 2 Highest Loss Streak 6 | . . 2 . 6 To Critical Strikes . | . . . . . Average Slot Usage (%) 75 | . 98 63 57 57 Engine 11 | . 14 7 14 13 Leg 13 | . 28 8 . . Flight 7 | . . 5 28 24 Storage 14 | . 14 14 14 14 Protection 6 | . 12 3 . . Ballistic Gun 17 | . 28 17 . 1 Ballistic Cannon 3 | . . 7 . 1 Peak Build Rating 11 | 6 7 8 6 11 Average Rating 6 | 4 6 5 5 6 On Entrance 4 | . 6 7 5 6 Naked Turns . | . . . . . Heaviest Build 17 | 14 17 17 8 15 Greatest Support 20 | 20 20 20 8 8 Greatest Overweight (x) 4 | . . 4 . 4 Average Overweight (x) . | . . 1 . . Largest Inventory Capacity 8 | 8 8 8 8 8 Average Capacity 7 | 6 8 8 8 7 Most Carried 8 | 5 6 8 8 8 Average Carried 4 | 2 3 4 7 7 Final Capacity 8 | 8 8 8 8 5 Final Carried 8 | 2 4 6 8 5 Class Distribution -------------------- 100% | Mutant Dominant Class ---------------- Mutant | -10/Materials Mutant | -10/Mines Mutant | -10/Exiles Mutant | -9/Mines Resources | -11 -10 -10 -10 -9 ----------- Run | Yrd Mat Min Exi Min Matter Collected 700 | 218 202 165 . 115 Remotely . | . . . . . Salvage Created 519 | . 314 102 . 103 Parts 46 | . 29 13 . 4 Haulers Intercepted 1 | . 1 . . . Recyclers Shooed . | . . . . . Parts Field Recycled . | . . . . . Retrieved Matter . | . . . . . Parts Self-Destructed . | . . . . . Prevented . | . . . . . Kills | -11 -10 -10 -10 -9 ------- Run | Yrd Mat Min Exi Min Combat Hostiles Destroyed 27 | . 8 8 . 11 Guns 15 | . 8 6 . 1 Cannons 4 | . . 2 . 2 AOE 8 | . . . . 8 Classes Destroyed 6 | . 4 . . 2 Hauler 1 | . 1 . . . Watcher 3 | . 3 . . . Swarmer 15 | . 6 7 . 2 Grunt 2 | . 2 . . . Sentry 2 | . . . . 2 Assembled 7 | . . . . 7 Best Kill Streak 5 | . 3 3 . 5 Combat Bots Only 5 | . 3 3 . 5 Max Kills in Single Turn 4 | . 1 2 . 4 Gunslinging 1 | . . 1 . . Exploded 4 | . . . . 4 Melee . | . . . . . Uniques/NPCs Destroyed 1 | . . 1 . . YI-UF0 (-10/Mines) Combat | -11 -10 -10 -10 -9 -------- Run | Yrd Mat Min Exi Min Hostile Shots Fired 117 | . 30 37 . 50 Missed 35 | . 10 9 . 16 Damage Taken 1036 | . 166 395 . 475 Core 284 | . 32 60 . 192 Absorbed by Shields . | . . . . . Ignored by Resistances 303 | . 52 117 . 134 Core Remaining (%) 100 | 100 . . . . Volleys Fired 56 | . 25 15 . 16 Largest 2 | . 2 2 . 1 Hottest 64 | . 40 64 . 44 Shots Fired 94 | . 50 28 . 16 Gun 77 | . 50 23 . 4 Cannon 11 | . . 5 . 6 Launcher 6 | . . . . 6 Special . | . . . . . Kinetic 88 | . 50 28 . 10 Thermal . | . . . . . Explosive 6 | . . . . 6 Electromagnetic . | . . . . . Robot Hit Streak 20 | . 16 20 . 13 Robot Miss Streak 4 | . 2 4 . 4 Penetration Max . | . . . . . Secondary Targets 2 | . . 2 . . Max Gunslinging Chain 1 | . . 1 . . Shots Hit Robots 68 | . 36 18 . 14 Core Hits 46 | . 16 11 . 19 Critical Kills . | . . . . . Critical Parts Destroyed . | . . . . . Critical Strikes . | . . . . . Melee Attacks 3 | . . . . 3 Impact . | . . . . . Slashing 3 | . . . . 3 Piercing . | . . . . . Sneak Attacks . | . . . . . Combat Hostiles . | . . . . . Follow-up Attacks . | . . . . . Damage Inflicted 1354 | . 464 265 . 625 Guns 682 | . 464 184 . 34 Cannons 183 | . . 81 . 102 Explosions 489 | . . . . 489 Melee . | . . . . . Ramming . | . . . . . Kinetic 865 | . 464 265 . 136 Thermal . | . . . . . Explosive 489 | . . . . 489 Electromagnetic . | . . . . . Impact . | . . . . . Slashing . | . . . . . Piercing . | . . . . . Highest Corruption 3 | . . 3 3 3 Average Corruption 3 | . . 3 3 3 Corruption Purged . | . . . . . Corruption Blocked . | . . . . . Effects 20 | . . 11 7 2 Message Errors 7 | . . 2 3 2 Matter Fused 4 | . . 3 1 . Heat Flow Errors 3 | . . 3 . . Data Loss (minor) 2 | . . . 2 . Alerts 3 | . . 2 1 . Weapon Failures 1 | . . 1 . . Overload Shots . | . . . . . Overflow Damage 6 | . . . . 6 Projectiles . | . . . . . Explosions 6 | . . . . 6 Melee . | . . . . . Knockbacks 3 | . . 1 . 2 Impact . | . . . . . Kinetic 3 | . . 1 . 2 Secondary . | . . . . . Self-Inflicted Damage . | . . . . . Shots . | . . . . . Rammed . | . . . . . Targets Rammed . | . . . . . Kicked . | . . . . . Crushed . | . . . . . Highest Temperature 272 | . 26 272 . 26 Average Temperature 74 | . 14 126 . 12 Received Heat Transfer 186 | . 99 . . 87 Siege Activations . | . . . . . Robots Corrupted . | . . . . . Combat Hostiles . | . . . . . Parts Fried . | . . . . . Impact Corruptions . | . . . . . Robots Melted . | . . . . . Combat Hostiles . | . . . . . Parts Melted . | . . . . . Heat Transferred . | . . . . . Parts Sabotaged . | . . . . . Parts Stolen . | . . . . . Parts Stripped . | . . . . . Power Chain Reactions . | . . . . . Alert | -11 -10 -10 -10 -9 ------- Run | Yrd Mat Min Exi Min Peak Influence 206 | . 206 179 . 137 Initial 27 | . . 27 . . Average 79 | . 72 89 . 97 Maximum Alert Level 1 | . 1 . . . Low Security (%) 99 | 100 99 100 . 100 Level 1 . | . . . . . Level 2 . | . . . . . Level 3 . | . . . . . Level 4 . | . . . . . Level 5 . | . . . . . High Security . | . . . . . Max Security . | . . . . . Squads Dispatched 1 | . 1 . . . Investigation 1 | . 1 . . . Extermination . | . . . . . Reinforcement . | . . . . . Assault . | . . . . . Garrison . | . . . . . Intercept . | . . . . . Searches Triggered . | . . . . . Construction Impeded . | . . . . . Haulers Reinforced . | . . . . . Active Scanning Responses . | . . . . . Cargo Convoy Interrupts . | . . . . . Stealth | -11 -10 -10 -10 -9 --------- Run | Yrd Mat Min Exi Min Distress Signals . | . . . . . Communications Jammed . | . . . . . Distress Signals . | . . . . . Times Spotted 49 | . 13 11 . 25 Peak Tracking Total 10 | . 3 3 . 10 Tactical Retreats 3 | . 1 1 . 1 Traps | -11 -10 -10 -10 -9 ------- Run | Yrd Mat Min Exi Min Traps Triggered . | . . . . . Indirectly . | . . . . . Trap Hack Attempts . | . . . . . Triggered . | . . . . . Disarmed . | . . . . . Reprogrammed . | . . . . . Reused . | . . . . . Traps Extracted . | . . . . . Installed . | . . . . . Triggered . | . . . . . Machines | -11 -10 -10 -10 -9 ---------- Run | Yrd Mat Min Exi Min Machines Disabled 2 | . . . . 2 Max in Single Turn 2 | . . . . 2 Machines Repaired . | . . . . . Machines Dismantled . | . . . . . Machines Sabotaged . | . . . . . Overloaded Fab Kills . | . . . . . Hacking | -11 -10 -10 -10 -9 --------- Run | Yrd Mat Min Exi Min Machines Accessed 6 | . 3 1 2 . Terminals 2 | . 2 . . . Fabricators . | . . . . . Repair Stations . | . . . . . Recycling Units 1 | . 1 . . . Scanalyzers . | . . . . . Garrison Access . | . . . . . Total Hacks 12 | . 7 1 4 . Successful 8 | . 3 1 4 . Failed 4 | . 4 . . . Catastrophic . | . . . . . Database Lockouts . | . . . . . Manual 1 | . . . 1 . Terminals 6 | . 6 . . . Fabricators . | . . . . . Repair Stations . | . . . . . Recycling Units 1 | . 1 . . . Scanalyzers . | . . . . . Garrison Access . | . . . . . Terminal Hacks 7 | . 2 1 4 . Record 3 | . . . 3 . Robot Analysis 1 | . 1 . . . Open Door 1 | . . 1 . . Branch Access Points 1 | . 1 . . . Derelict Proto ID Bank 1 | . . . 1 . Fabricator Hacks . | . . . . . Repair Station Hacks . | . . . . . Recycling Unit Hacks 1 | . 1 . . . Report Inventory 1 | . 1 . . . Scanalyzer . | . . . . . Garrison Access Hacks . | . . . . . Unauthorized Hacks . | . . . . . Terminals . | . . . . . Fabricators . | . . . . . Repair Stations . | . . . . . Recycling Units . | . . . . . Scanalyzers . | . . . . . Garrison Access . | . . . . . Data Cores Recovered . | . . . . . Used . | . . . . . Hacking Detections 2 | . 2 . . . Full Trace Events 1 | . 1 . . . Feedback Events . | . . . . . Feedback Blocked . | . . . . . Robot Schematics Acquired . | . . . . . Robots Built . | . . . . . Authchips . | . . . . . Time . | . . . . . Total Robot Build Rating . | . . . . . Part Schematics Acquired . | . . . . . Parts Built . | . . . . . Authchips . | . . . . . Time . | . . . . . Total Part Build Rating . | . . . . . Parts Repaired . | . . . . . Time . | . . . . . Parts Recycled . | . . . . . Recycled Matter . | . . . . . Retrieved Matter . | . . . . . Retrieved Components . | . . . . . Parts Scanalyzed . | . . . . . Part Schematics Acquired . | . . . . . Parts Damaged . | . . . . . Bothacking | -11 -10 -10 -10 -9 ------------ Run | Yrd Mat Min Exi Min Used RIF Installer . | . . . . . Robots Hacked . | . . . . . Non-combat . | . . . . . Combat . | . . . . . Robot Hacks Applied . | . . . . . Relay Couplers Released . | . . . . . Fabnet Peak Effective % . | . . . . . Robots Rewired . | . . . . . Allies Hacked . | . . . . . Hacks Repelled . | . . . . . Allies | -11 -10 -10 -10 -9 -------- Run | Yrd Mat Min Exi Min Total Allies 1 | . . 1 . . Largest Group 1 | . . 1 . . Highest-Rated Group 31 | . . 31 . . Highest-Rated Ally 31 | . . 31 . . Total Orders . | . . . . . Ally Attacks 8 | . . 8 . . Total Damage 103 | . . 103 . . Kills 1 | . . 1 . . Allies Corrupted . | . . . . . Allies Melted . | . . . . . Intel | -11 -10 -10 -10 -9 ------- Run | Yrd Mat Min Exi Min Robot Analysis Total 1 | . 1 . . . Derelict Logs Recovered 1 | . . . . 1 Drone Launches . | . . . . . Drone Recoveries . | . . . . . Exploration | -11 -10 -10 -10 -9 ------------- Run | Yrd Mat Min Exi Min Turns Passed 1814 | 60 644 738 229 143 Spaces Moved 1510 | 44 432 486 347 201 Core 148 | 8 . 139 . 1 Treads . | . . . . . Legs 627 | 36 432 159 . . Wheels . | . . . . . Hover . | . . . . . Flight 735 | . . 188 347 200 Fastest Speed 37 | 50 120 37 37 37 Average Speed 96 | 107 120 139 37 40 Slowest Speed 250 | 120 120 250 37 250 Overloaded Moves . | . . . . . Propulsion Burnouts . | . . . . . Robots Hopped 1 | . . . . 1 Cave-ins Triggered . | . . . . . Exploration Rate (%) 58 | 4 79 98 70 40 Regions Visited 4 Branch Regions 3 Pre-discovered Areas 1 | . . . 1 . Known Exits Taken 1 | . 1 . . . Unknown Exits Taken 3 | 1 . 1 1 . Scrap Searched 1 | . . . . 1 Spaces Dug 1 | . . . . 1 Terrain Destroyed 48 | . . . . 48 Melee 1 | . . . . 1 Projectile . | . . . . . AOE 47 | . . . . 47 Terrain Rammed . | . . . . . Walls Destroyed . | . . . . . Machines Disabled . | . . . . . Actions | -11 -10 -10 -10 -9 --------- Run | Yrd Mat Min Exi Min Total 1773 | 57 508 520 446 242 Wait 150 | . 46 . 99 5 Move 1504 | 43 431 485 346 199 Hop 1 | . . . . 1 Pick Up 23 | 8 4 8 1 2 Fast Attach 1 | . . . . 1 Attach 20 | 6 1 5 . 8 Detach 7 | . . 3 . 4 Swap 1 | . . . . 1 Drop 7 | . 1 4 . 2 Fire 56 | . 25 15 . 16 Melee 3 | . . . . 3 Ram . | . . . . . Kick . | . . . . . Crush . | . . . . . Escape Stasis . | . . . . . Rewire . | . . . . . Trap . | . . . . . Miscellaneous . | . . . . . Route ------- -11/Scrapyard -10/Materials (discovered 5 exits: [*Mat x3] / *Min x2) -10/Mines (discovered 3 exits: [*Mat x2] / *Exi) -10/Exiles -9/Mines History --------- Turn | Location | Event 2 | -11/Scrapyard | Met Revision 17 4 | -11/Scrapyard | Discovered new exit (range 15) 61 | -11/Scrapyard | Entered Materials 193 | -10/Materials | Discovered new exit (range 11) 274 | -10/Materials | Discovered new exit (range 5) 300 | -10/Materials | Build established: Mutant 395 | -10/Materials | Discovered new exit (range 4) 527 | -10/Materials | Discovered new exit (range 13) 637 | -10/Materials | Identified exit to Mines 668 | -10/Materials | Discovered new exit (range 4) 705 | -10/Materials | Entered Mines 708 | -10/Mines | Received a Mining Laser from a helpful Derelict 847 | -10/Mines | Met a Derelict who couldn't figure out how to use a Trap Extractor 932 | -10/Mines | Destroyed YI-UF0 1093 | -10/Mines | Discovered new exit (range 7) 1347 | -10/Mines | Discovered new exit (range 5) 1442 | -10/Mines | Deemed a non-threat by the Exiles lab entrance 1442 | -10/Mines | Discovered new exit (range 5) 1443 | -10/Mines | Entered Exiles 1454 | -10/Exiles | Met 8R-AWN 1459 | -10/Exiles | Met EX-HEX 1470 | -10/Exiles | Met EX-BIN 1475 | -10/Exiles | Aligned with FarCom system 1476 | -10/Exiles | Given EX-Vault access code 1485 | -10/Exiles | Opened EX-Vault 1487 | -10/Exiles | Found AWS/Thermal 1496 | -10/Exiles | Warned to stay clear of 0b10 Research branches 1502 | -10/Exiles | Exiles lab attacked by MAIN.C 1510 | -10/Exiles | Learned location of Zion (-7) 1564 | -10/Exiles | Discovered new exit (range 14) 1672 | -10/Exiles | Left Exiles lab with AWS/Thermal 1672 | -10/Exiles | Entered Mines 1679 | -9/Mines | Received a Rocket Launcher from a helpful Derelict 1699 | -9/Mines | Joined a pair of Derelicts in attacking an 0b10 outpost 1723 | -9/Mines | Assembled infested the area 1728 | -9/Mines | Assisted by a Guerilla fighting off Assembled 1759 | -9/Mines | Core integrity fell below 50% 1775 | -9/Mines | Core integrity fell below 20% 1783 | -9/Mines | Lost 4 allies 1785 | -9/Mines | Learned 8 Materials zone layouts 1815 | -9/Mines | Destroyed by D-53 Grenadier with Mini Grenade Launcher Last Messages --------------- Rocket Launcher destroyed. as-51458 destroyed. Acquired Bore Cannon. Acquired 40 matter. Acquired Phase Shifter. Acquired 1 matter. Acquired derelict log, extracted data. Data stored: Materials zone layouts (x8). as-64483 destroyed. Flight Unit destroyed. Assault Rifle destroyed. as-91159 destroyed. as-68754 knocked back. Lgt. Ion Engine destroyed. B7TEBH#YGP ,VQGLWCOPMSMMKZOB as-53111 knocked back. as-68754 destroyed. as-53111 destroyed. Dropped Sml. Storage Unit. The unstable cave ceiling collapses. Map ----- +----------------------------------------------------+ | * # #?????? | | # #### #?????? | | ## = # ##??# #?????? | | ?# # #???# #?????? | | ?# # ##### #?????? | | ?# % ?## % ### ##????? | | # % ## ## #????? | | # ## ## #????? | | ## # #### ### = #????? | | ?# #### ###??# #?##!%/ #????? | | ?## ###???###?#### #??# ##????? | | ??## ##?????????# #??#####?????? | | ???# % #??????????# ####????????????? | | ???# #??????????# #???????????????? | | ????% ????????#### #???????????????? | | ???? ###### #???????????????? | | ???? ##??????????????? | | ???? d##?????????????? | | ???? ######### ##????????????? | | ?????#????????????## #???####?????? | | ??????????????????## #?## ##????? | | ??????????????????# ?# #????? | | ??????????????????# ## #????? | | ??????????????????# # # ##????? | | ?????????????????## < ###?????? | | ?????????????????# @!##???????? | | ?????????????????# ##????????? | | ?????????????????# ## ###?????????? | | ????????????????????####????????????? | | ????????????????????????????????????? | | ????????????????????????????????????? | | ????????????????????????????????????? | | | | | | | | | | | | | | | | | | | | | | | | | | | | | | | | | | | | | +----------------------------------------------------+ Best States ------------- Heat Dissipation 25 Energy Generation 10 Energy Capacity 250 Matter Stores 300 Matter Capacity 300 Sight Range 16 Terrain Scan Density 10 Armor Coverage 150 Resistance: KI 20 Resistance: TH 20 Resistance: EX 20 Resistance: EM 20 Resistance: I 20 Resistance: S 20 Resistance: P 20 Evasion (%) 62 Offensive Hacking 10 Item Schematics ----------------- None Robot Schematics ------------------ None Fabricated ------------ Nothing Alien Tech Used ----------------- None Achievements -------------- None Challenges ------------ None Game ------ Seed CouplerStealthFemtoactuators Manual? 0 Play Time 00:15:26 Cumulative 47.2 hours Start 2024.08.31 @ 15:41:08 End 2024.08.31 @ 15:55:42 Sessions 1 Manual Loads 0 Difficulty Adventurer Special Mode None Game No. 62 Rogue 13 Adventurer 49 Explorer 0 Win Type - Total 0 Types 0/0/0/0/0/0/0/0/0 Lore% 40 Gallery% 45 Achievement% 38 Wizard Run 0 Options --------- Layout 1 ASCII 0 Keyboard 0 Movement Mouse Keybinds 0 Fullscreen 1 Font 24/Smallcaps Map View 50x35 Zoom Use 0% Tactical HUD 0 Map Filters NONE Filters NONE Steam 1 RUN: 45f6a40f-b535-4d7a-8bb2-bbb2707b63d0